bitfinex-derivatives/quotes_BTCF0:USTF0_20250211
["timestamp","ask_amount","ask_price","bid_price","bid_amount"]
[1739310301134,0.5684388,96326.0,96325.0,0.00015579]
[1739310302133,0.3608,96326.0,96306.0,0.3608]
[1739310302420,0.3608,96326.0,96295.0,0.4127259]
[1739310302421,0.2077035,96296.0,96295.0,0.36236]
[1739310302626,0.2077035,96296.0,96295.0,0.3608]
[1739310302811,0.12439353,96305.0,96295.0,0.3608]
[1739310303317,0.12439353,96305.0,96274.0,0.18301466]
[1739310303318,0.2077143,96291.0,96290.0,0.00171327]
[1739310303524,0.3608,96296.0,96274.0,0.39076536]
[1739310303525,0.2077466,96276.0,96275.0,0.2077487]
[1739310303722,0.2077466,96276.0,96274.0,0.18301466]
[1739310304425,0.0328,96275.0,96256.0,0.2077895]
[1739310304618,0.3608,96265.0,96256.0,0.2077895]
[1739310305127,0.2077802,96261.0,96256.0,0.2077895]
[1739310306223,0.2107802,96261.0,96256.0,0.2077895]
[1739310306819,0.2107802,96261.0,96251.0,0.001339]
[1739310306820,0.2077909,96256.0,96251.0,0.001339]
[1739310307019,0.2077928,96255.0,96251.0,0.001339]
[1739310308125,0.13239353,96261.0,96251.0,0.2091389]
[1739310308323,0.001,96255.0,96251.0,0.2091389]
[1739310308524,0.002,96255.0,96251.0,0.2091389]
[1739310308924,0.002,96255.0,96251.0,0.001339]
[1739310309331,0.001,96255.0,96251.0,0.001339]
[1739310309932,0.2077975,96253.0,96251.0,0.001339]
[1739310310316,0.001,96255.0,96252.0,1.5]
[1739310311028,0.001,96255.0,96251.0,0.002339]
[1739310311621,0.002,96255.0,96252.0,1.5]
[1739310311820,0.2077956,96254.0,96251.0,0.001339]
[1739310312021,0.2077975,96253.0,96251.0,0.001339]
[1739310312217,0.2077975,96253.0,96251.0,0.00015579]
[1739310312822,0.07316,96252.0,96251.0,0.00015579]
[1739310313127,0.2809585,96252.0,96251.0,0.001]
[1739310313718,0.20782,96242.0,96241.0,0.00155837]
[1739310315431,0.20882,96242.0,96241.0,0.00955837]
[1739310316337,0.001,96242.0,96232.0,0.00015579]
[1739310316630,0.001,96242.0,96221.0,0.3608]
[1739310316631,0.3608,96233.0,96221.0,0.5686651]
[1739310316930,0.2078575,96225.0,96221.0,0.5686651]
[1739310317127,0.2078575,96225.0,96221.0,0.3608]
[1739310317327,0.2078575,96225.0,96223.0,0.207861]
[1739310317727,0.1948575,96225.0,96223.0,0.207861]
[1739310317930,0.0318,96228.0,96221.0,0.3678]
[1739310318223,0.0318,96228.0,96208.0,0.3608]
[1739310318224,0.2078928,96209.0,96205.0,0.2079]
[1739310318426,0.12439353,96215.0,96201.0,0.00155893]
[1739310318625,0.11739353,96215.0,96201.0,0.00155893]
[1739310318820,0.2078913,96210.0,96201.0,0.00155893]
[1739310319019,0.12439353,96211.0,96201.0,0.00155893]
[1739310319340,0.2079065,96202.0,96201.0,0.00155893]
[1739310320227,0.2079087,96201.0,96200.0,0.1]
[1739310321029,0.0097504,96202.0,96200.0,0.1]
[1739310321222,0.0316,96205.0,96201.0,0.2079087]
[1739310321537,0.001,96202.0,96201.0,0.2079087]
[1739310321733,0.001,96202.0,96200.0,0.1]
[1739310322041,0.2089079,96202.0,96200.0,0.1]
[1739310322334,0.2219079,96202.0,96200.0,0.1]
[1739310322637,0.3668,96201.0,96182.0,0.2079486]
[1739310322935,0.12439353,96192.0,96182.0,0.2079486]
[1739310323232,0.3608,96184.0,96182.0,0.2079486]
[1739310325033,0.207933,96190.0,96182.0,0.2079486]
[1739310325234,0.001,96184.0,96182.0,0.2079486]
[1739310325729,0.2089454,96184.0,96175.0,0.2079631]
[1739310325932,0.2089454,96184.0,96176.0,0.2079611]
[1739310326241,0.2089454,96184.0,96177.0,0.2079593]
[1739310326626,0.2089454,96184.0,96179.0,0.2079547]
[1739310327734,0.2079454,96184.0,96179.0,0.2079547]
[1739310328039,0.2079487,96183.0,96179.0,0.2079547]
[1739310329331,0.2089487,96183.0,96179.0,0.2079547]
[1739310329527,0.2089487,96183.0,96180.0,0.2079524]
[1739310329736,0.001,96183.0,96182.0,0.3608]
[1739310331141,0.2079386,96188.0,96183.0,0.2079475]
[1739310331636,0.13424728,96190.0,96183.0,0.2079475]
[1739310332339,0.13424728,96190.0,96174.0,0.52958]
[1739310332646,0.13424728,96190.0,96174.0,0.3913]
[1739310332647,0.2079642,96176.0,96174.0,0.3913]
[1739310333440,0.12439353,96184.0,96174.0,0.3913]
[1739310333643,0.2079527,96181.0,96175.0,0.2079641]
[1739310334139,0.12439353,96184.0,96175.0,0.2079641]
[1739310334545,0.0319,96183.0,96175.0,0.2079641]
[1739310334846,0.001,96181.0,96175.0,0.2079641]
[1739310335234,0.2079588,96178.0,96175.0,0.2079641]
[1739310335840,0.2079629,96176.0,96175.0,0.2079641]
[1739310336040,0.2079536,96181.0,96173.0,0.00180788]
[1739310336230,0.2079536,96181.0,96178.0,0.2079585]
[1739310336430,0.001,96183.0,96182.0,0.2079499]
[1739310337140,0.01000623,96193.0,96179.0,0.43548]
[1739310337443,0.2079432,96186.0,96181.0,0.2079518]
[1739310337646,0.2079454,96185.0,96179.0,0.3608]
[1739310337843,0.2079454,96185.0,96182.0,0.2079495]
[1739310338045,0.001,96183.0,96182.0,0.2079495]
[1739310338738,0.001,96185.0,96179.0,0.3608]
[1739310338945,0.2079522,96181.0,96179.0,0.3608]
[1739310339336,0.2079629,96176.0,96175.0,0.18301466]
[1739310339740,0.5687629,96176.0,96175.0,0.18301466]
[1739310340344,0.2079672,96174.0,96173.0,0.00010406]
[1739310340839,0.2079715,96172.0,96171.0,0.12154122]
[1739310341039,0.2079888,96164.0,96163.0,0.3123091]
[1739310341642,0.2079888,96164.0,96163.0,0.31074947]
[1739310342149,0.2139888,96164.0,96163.0,0.31074947]
[1739310343246,0.22392736,96164.0,96163.0,0.31074947]
[1739310343641,0.23792736,96164.0,96163.0,0.31074947]
[1739310344443,0.208004,96157.0,96156.0,0.39121554]
[1739310345345,0.02993856,96164.0,96163.0,0.207991]
[1739310345851,0.02393856,96164.0,96163.0,0.207991]
[1739310346354,0.21792736,96164.0,96163.0,0.207991]
[1739310346552,0.00993856,96164.0,96163.0,0.207991]
[1739310346738,0.2079778,96170.0,96156.0,0.54553014]
[1739310346943,0.07316,96172.0,96166.0,0.2079826]
[1739310347145,0.2079809,96168.0,96156.0,0.3608]
[1739310347338,0.2079737,96171.0,96162.0,0.2079926]
[1739310347543,0.207991,96163.0,96162.0,0.2079926]
[1739310347945,0.2080036,96158.0,96157.0,0.2080025]
[1739310348348,0.208004,96157.0,96156.0,0.3608]
[1739310348655,0.2080126,96153.0,96152.0,0.2080139]
[1739310349954,0.2080191,96150.0,96149.0,0.31074947]
[1739310350149,0.2080213,96149.0,96148.0,0.3608]
[1739310350544,0.2080213,96149.0,96148.0,0.5688235]
[1739310351258,0.2110213,96149.0,96148.0,0.3608]
[1739310351553,0.2130213,96149.0,96148.0,0.3608]
[1739310351753,0.005,96149.0,96148.0,0.5688235]
[1739310359052,0.2130213,96149.0,96148.0,0.5688235]
[1739310360954,0.005,96149.0,96148.0,0.5688235]
[1739310361755,0.12439353,96190.0,96148.0,0.6608]
[1739310361957,0.0647,96187.0,96172.0,0.5687715]
[1739310362151,0.01238477,96180.0,96172.0,0.5687715]
[1739310363454,0.00315596,96173.0,96172.0,0.5687715]
[1739310363858,0.01015596,96173.0,96172.0,0.5687715]
[1739310364050,0.00715596,96173.0,96172.0,0.5687715]
[1739310364262,0.02115596,96173.0,96172.0,0.5687715]
[1739310366455,0.00715596,96173.0,96172.0,0.5687715]
[1739310366765,0.01515596,96173.0,96172.0,0.5687715]
[1739310367062,0.3608,96192.0,96172.0,0.5687715]
[1739310367063,0.3608,96286.0,96209.0,0.3608]
[1739310367261,0.00155887,96303.0,96176.0,0.519905]
[1739310367262,0.00155887,96303.0,96285.0,0.3608]
[1739310367455,0.1120623,96300.0,96299.0,0.3608]
[1739310367655,0.0734,96328.0,96299.0,0.3608]
[1739310367854,0.3608,96358.0,96286.0,0.0519308]
[1739310367855,0.12439353,96340.0,96327.0,0.3608]
[1739310368057,0.07388,96343.0,96336.0,0.3608]
[1739310368255,0.78126543,96349.0,96337.0,0.3608]
[1739310368256,0.2075923,96348.0,96337.0,0.3608]
[1739310368479,0.12439353,96360.0,96347.0,0.3608]
[1739310368655,0.21031242,96360.0,96359.0,0.3608]
[1739310368959,0.07388,96360.0,96359.0,0.3608]
[1739310369155,0.20771649,96363.0,96359.0,0.3608]
[1739310369557,0.01277496,96363.0,96362.0,0.3608]
[1739310369761,0.00015569,96363.0,96362.0,0.3608]
[1739310370665,0.00015569,96363.0,96319.0,0.2076529]
[1739310370666,0.007,96360.0,96336.0,0.3608]
[1739310370860,0.18627108,96346.0,96336.0,0.3608]
[1739310371066,0.207614,96338.0,96336.0,0.3608]
[1739310371857,0.207614,96338.0,96336.0,0.3618]
[1739310372574,0.222614,96338.0,96336.0,0.3618]
[1739310373360,0.021,96338.0,96336.0,0.3608]
[1739310374768,0.014,96338.0,96336.0,0.3608]
[1739310374968,0.014,96338.0,96336.0,0.5684162]
[1739310374969,0.007,96338.0,96336.0,0.5684162]
[1739310375168,0.022,96338.0,96336.0,0.5694162]
[1739310375563,0.00015569,96347.0,96346.0,0.01]
[1739310375768,0.00015569,96347.0,96346.0,0.3708]
[1739310376071,0.18627108,96370.0,96346.0,0.3708]
[1739310376072,0.18627108,96370.0,96365.0,0.01]
[1739310376260,0.0830709,96399.0,96369.0,0.3608]
[1739310376261,0.07844,96379.0,96369.0,0.3608]
[1739310376773,0.9766935,96375.0,96369.0,0.3608]
[1739310377571,0.76916,96375.0,96369.0,0.3608]
[1739310377970,0.2075438,96371.0,96369.0,0.3618]
[1739310378360,0.77616,96375.0,96369.0,0.3618]
[1739310378565,0.79116,96375.0,96369.0,0.3628]
[1739310378977,0.00015569,96382.0,96374.0,0.2075356]
[1739310379272,0.00015569,96382.0,96381.0,0.3608]
[1739310381172,0.00715569,96382.0,96381.0,0.5693206]
[1739310381368,0.01515569,96382.0,96381.0,0.3618]
[1739310381967,0.00715569,96382.0,96381.0,0.3618]
[1739310382167,0.01515569,96382.0,96381.0,0.3628]
[1739310386273,0.01515569,96382.0,96381.0,0.3618]
[1739310386484,0.01515569,96382.0,96381.0,0.3628]
[1739310386979,0.00815569,96382.0,96381.0,0.3618]
[1739310387185,0.01415569,96382.0,96381.0,0.3628]
[1739310388471,0.22167409,96382.0,96381.0,0.3628]
[1739310388778,0.207527,96378.0,96377.0,0.32999107]
[1739310388975,0.09443569,96382.0,96369.0,0.3608]
[1739310388976,0.2075443,96370.0,96369.0,0.3608]
[1739310390181,0.2115443,96370.0,96369.0,0.3608]
[1739310390580,0.00615569,96382.0,96369.0,0.3608]
[1739310390781,0.00615569,96382.0,96381.0,0.3608]
[1739310390975,0.00015569,96382.0,96381.0,0.3608]
[1739310391178,0.00015569,96382.0,96381.0,0.5683206]
[1739310391578,0.00015569,96382.0,96381.0,0.3608]
[1739310391779,0.00615569,96382.0,96381.0,0.3608]
[1739310392379,0.01015569,96382.0,96381.0,0.3608]
[1739310392878,0.01315569,96382.0,96381.0,0.3618]
[1739310393881,0.00915569,96382.0,96381.0,0.3618]
[1739310394078,0.01215569,96382.0,96381.0,0.3628]
[1739310395780,0.01215569,96382.0,96381.0,0.01150275]
[1739310395986,0.2075441,96370.0,96369.0,0.3608]
[1739310396282,0.2075441,96370.0,96369.0,0.37424972]
[1739310396685,0.07964,96371.0,96357.0,0.01]
[1739310396880,0.2075592,96363.0,96357.0,0.01]
[1739310398080,0.2075592,96363.0,96353.0,0.54472729]
[1739310398289,0.2105592,96363.0,96353.0,0.54472729]
[1739310399085,0.2105592,96363.0,96353.0,0.18392729]
[1739310399988,0.22307369,96363.0,96353.0,0.18392729]
[1739310400389,0.22307369,96363.0,96349.0,0.30649135]
[1739310403985,0.22307369,96363.0,96356.0,0.24372678]
[1739310404289,0.2075917,96348.0,96347.0,0.28769704]
[1739310404488,0.2862317,96348.0,96347.0,0.28769704]
[1739310404784,0.2862317,96348.0,96347.0,0.28438727]
[1739310405282,0.2862317,96348.0,96347.0,0.23448727]
[1739310405677,0.2075917,96348.0,96347.0,0.23448727]
[1739310406080,0.07872,96354.0,96347.0,0.23448727]
[1739310406384,0.001,96348.0,96347.0,0.24448727]
[1739310406686,0.004,96348.0,96347.0,0.24448727]
[1739310406890,0.004,96348.0,96347.0,0.01]
[1739310408381,0.2075939,96347.0,96346.0,0.3608]
[1739310410484,0.2095939,96347.0,96346.0,0.3608]
[1739310410681,0.2115939,96347.0,96346.0,0.3608]
[1739310411792,0.2115939,96347.0,96338.0,0.01]
[1739310412290,0.3608,96453.0,96433.0,0.01]
[1739310412493,0.12,96500.0,96449.0,0.7216]
[1739310412494,0.0636,96476.0,96449.0,0.7216]
[1739310412685,0.18627108,96470.0,96449.0,0.3716]
[1739310412990,0.08004,96461.0,96449.0,0.3716]
[1739310413185,0.3223552,96450.0,96449.0,0.3716]
[1739310413386,0.31012632,96450.0,96449.0,0.3716]
[1739310413692,0.31012632,96450.0,96449.0,0.0108]
[1739310413994,0.32012632,96450.0,96449.0,0.0118]
[1739310414193,0.34139579,96458.0,96449.0,0.0118]
[1739310414383,0.2072774,96495.0,96481.0,0.2173039]
[1739310414586,0.01001814,96495.0,96487.0,0.3608]
[1739310414795,0.3608,96505.0,96491.0,0.01]
[1739310415090,0.2072392,96512.0,96495.0,0.3608]
[1739310415291,0.2072488,96508.0,96503.0,0.3608]
[1739310415689,0.00015543,96515.0,96505.0,0.01]
[1739310416088,0.2072517,96507.0,96505.0,0.01]
[1739310416890,0.2072517,96507.0,96505.0,0.011]
[1739310417586,0.2112517,96507.0,96505.0,0.012]
[1739310417788,0.2112517,96507.0,96505.0,0.002]
[1739310418081,0.08032,96506.0,96503.0,0.3608]
[1739310418294,0.2072562,96504.0,96503.0,0.3608]
[1739310418691,0.2072712,96497.0,96496.0,0.00015543]
[1739310418891,0.08024,96497.0,96484.0,0.3608]
[1739310419182,0.207297,96485.0,96484.0,0.3608]
[1739310420085,0.207297,96485.0,96484.0,0.7216]
[1739310420285,0.207297,96485.0,96484.0,0.7226]
[1739310421100,0.212297,96485.0,96484.0,0.7236]
[1739310422293,0.212297,96485.0,96484.0,0.002]
[1739310422798,0.292257,96485.0,96484.0,0.002]
[1739310425400,0.292177,96485.0,96484.0,0.002]
[1739310425596,0.005,96485.0,96484.0,0.3628]
[1739310425799,0.005,96485.0,96484.0,0.3728]
[1739310426099,0.005,96485.0,96484.0,0.5800991]
[1739310426287,0.005,96485.0,96484.0,0.5790991]
[1739310426492,0.005,96485.0,96484.0,0.5800991]
[1739310427398,0.00015543,96494.0,96487.0,0.207292]
[1739310427603,0.00015543,96494.0,96493.0,0.3608]
[1739310429701,0.00115543,96494.0,96493.0,0.3608]
[1739310430095,0.00015543,96494.0,96493.0,0.3618]
[1739310430291,0.00315543,96494.0,96493.0,0.3618]
[1739310430497,0.00315543,96494.0,96493.0,0.3718]
[1739310430696,0.00015543,96494.0,96493.0,0.3618]
[1739310430905,0.08471543,96494.0,96493.0,0.3608]
[1739310431698,0.08471543,96494.0,96486.0,0.01]
[1739310431916,0.2072927,96487.0,96486.0,0.01]
[1739310432397,0.2072927,96487.0,96475.0,0.00015492]
[1739310432398,0.2073142,96477.0,96475.0,0.00015492]
[1739310432605,0.44024,96476.0,96463.0,0.3608]
[1739310432807,0.2073422,96464.0,96463.0,0.3608]
[1739310433797,0.2123422,96464.0,96463.0,0.3618]
[1739310434396,0.2073422,96464.0,96462.0,0.01]
[1739310434607,0.2073422,96464.0,96463.0,0.001]
[1739310434608,0.2123422,96464.0,96463.0,0.001]
[1739310434906,0.2073701,96451.0,96450.0,0.3608]
[1739310435207,0.2866901,96451.0,96450.0,0.3608]
[1739310435405,0.005,96464.0,96456.0,0.01]
[1739310435706,0.2073499,96461.0,96456.0,0.01]
[1739310435905,0.2073499,96461.0,96460.0,0.3608]
[1739310437211,0.2133499,96461.0,96460.0,0.3628]
[1739310438508,0.2133499,96461.0,96460.0,0.002]
[1739310438706,0.2133499,96461.0,96460.0,0.3728]
[1739310439721,0.2133499,96461.0,96460.0,0.012]
[1739310440313,0.2133499,96461.0,96460.0,0.002]
[1739310440509,0.2073701,96451.0,96450.0,0.3708]
[1739310442413,0.2400701,96451.0,96450.0,0.3708]
[1739310443013,0.2430701,96451.0,96450.0,0.3708]
[1739310443215,0.25290082,96451.0,96450.0,0.3708]
[1739310443519,0.2073916,96441.0,96440.0,0.01]
[1739310445009,0.2073895,96442.0,96440.0,0.004]
[1739310445809,0.2073895,96442.0,96436.0,0.3608]
[1739310445810,0.2074002,96437.0,96436.0,0.3608]
[1739310447615,0.2144002,96437.0,96436.0,0.3618]
[1739310448616,0.2194002,96437.0,96436.0,0.3628]
[1739310449915,0.2124002,96437.0,96436.0,0.3618]
[1739310450114,0.2194002,96437.0,96436.0,0.3628]
[1739310451105,0.2164002,96437.0,96436.0,0.3628]
[1739310451921,0.2094002,96437.0,96436.0,0.3618]
[1739310452217,0.2164002,96437.0,96436.0,0.3628]
[1739310452517,0.2164002,96437.0,96436.0,0.3618]
[1739310452719,0.2164002,96437.0,96436.0,0.3628]
[1739310454120,0.22616726,96437.0,96436.0,0.3628]
[1739310454625,0.30468726,96437.0,96436.0,0.3628]
[1739310456416,0.30468726,96437.0,96436.0,0.002]
[1739310456615,0.30468726,96437.0,96410.0,0.18289521]
[1739310456616,0.0518507,96436.0,96410.0,0.18289521]
[1739310456809,0.18587552,96420.0,96410.0,0.18289521]
[1739310457007,0.2074449,96417.0,96410.0,0.18289521]
[1739310457314,0.18587552,96420.0,96410.0,0.18289521]
[1739310457715,0.18587552,96420.0,96410.0,0.18589521]
[1739310457914,0.18587552,96420.0,96412.0,0.2074538]
[1739310458213,0.3608,96422.0,96412.0,0.2074538]
[1739310458914,0.3608,96422.0,96414.0,0.2074495]
[1739310459320,0.001,96422.0,96414.0,0.2074495]
[1739310459622,0.001,96422.0,96417.0,0.2074429]
[1739310460409,0.001,96422.0,96412.0,0.2074534]
[1739310460614,0.001,96422.0,96412.0,0.001]
[1739310460814,0.00015552,96423.0,96412.0,0.001]
[1739310461015,0.002,96422.0,96412.0,0.001]
[1739310461322,0.004,96422.0,96407.0,0.3608]
[1739310462025,0.002,96422.0,96407.0,0.3608]
[1739310462213,0.002,96422.0,96413.0,0.2074506]
[1739310462410,0.001,96422.0,96413.0,0.2074506]
[1739310462609,0.001,96422.0,96415.0,0.2074461]
[1739310462824,0.001,96422.0,96421.0,0.5682346]
[1739310463031,0.00015552,96423.0,96422.0,0.2074325]
[1739310464816,0.00215552,96423.0,96422.0,0.5682325]
[1739310465417,0.00015552,96423.0,96422.0,0.5692325]
[1739310465617,0.00315552,96423.0,96422.0,0.5692325]
[1739310465811,0.18587552,96450.0,96422.0,0.5692325]
[1739310465812,0.18587552,96460.0,96422.0,0.6618]
[1739310466017,0.77681058,96451.0,96449.0,0.3608]
[1739310466624,0.98418108,96451.0,96449.0,0.3608]
[1739310466823,0.77681058,96451.0,96449.0,0.3608]
[1739310467013,0.77681058,96451.0,96450.0,0.2073722]
[1739310467215,0.78381058,96451.0,96450.0,0.2073722]
[1739310467414,0.77392,96451.0,96450.0,0.2073722]
[1739310467622,0.77692,96451.0,96450.0,0.2073722]
[1739310468138,0.00015552,96460.0,96449.0,0.3628]
[1739310468422,0.00015552,96460.0,96459.0,0.5681529]
[1739310469320,0.00415552,96460.0,96459.0,0.5681529]
[1739310470623,0.01003018,96468.0,96467.0,0.2073357]
[1739310470821,9.923e-05,96477.0,96475.0,0.2073182]
[1739310471019,0.2072613,96502.0,96488.0,0.2072906]
[1739310471324,0.2072613,96502.0,96476.0,0.3608]
[1739310471325,0.2072657,96500.0,96494.0,0.3608]
[1739310471527,0.2072657,96500.0,96494.0,0.5680769]
[1739310471715,0.76708,96504.0,96494.0,0.5680769]
[1739310471921,0.77683494,96504.0,96494.0,0.5680769]
[1739310472620,0.77683494,96504.0,96494.0,0.5690769]
[1739310473424,0.77683494,96504.0,96494.0,0.5700769]
[1739310474212,0.2072604,96503.0,96494.0,0.3618]
[1739310474523,0.2072747,96496.0,96494.0,0.3628]
[1739310474825,0.2072747,96496.0,96494.0,0.002]
[1739310479429,0.2072906,96488.0,96487.0,0.00015552]
[1739310479630,0.207297,96485.0,96484.0,0.3608]
[1739310480527,0.2073142,96477.0,96476.0,0.3608]
[1739310480731,0.2073205,96475.0,96468.0,0.207333]
[1739310480932,0.0776,96485.0,96467.0,0.00015552]
[1739310481225,0.2073336,96468.0,96467.0,0.00015552]
[1739310483034,0.0774,96473.0,96449.0,0.5681737]
[1739310483035,0.0518325,96470.0,96449.0,0.3608]
[1739310483229,0.3608,96464.0,96449.0,0.3608]
[1739310483537,0.2073559,96458.0,96449.0,0.3608]
[1739310483926,0.2073577,96457.0,96449.0,0.5681726]
[1739310484336,0.2073577,96457.0,96449.0,0.3608]
[1739310484536,0.2073577,96457.0,96451.0,0.2073689]
[1739310484832,0.2073595,96456.0,96451.0,0.2073689]
[1739310485137,0.00015552,96463.0,96451.0,0.2073689]
[1739310485336,0.2073626,96455.0,96451.0,0.2073689]
[1739310485534,0.2073653,96454.0,96451.0,0.2073689]
[1739310486335,0.2073661,96453.0,96451.0,0.2073689]
[1739310487032,0.001,96456.0,96455.0,0.2073615]
[1739310487627,0.001,96453.0,96449.0,0.3608]
[1739310487833,0.001,96453.0,96452.0,0.207368]
[1739310488538,0.21715715,96462.0,96459.0,0.2073517]
[1739310488834,0.21715715,96462.0,96461.0,0.3608]
[1739310489034,0.00015552,96463.0,96462.0,0.2073465]
[1739310490529,0.01026642,96463.0,96462.0,0.2073465]
[1739310490836,0.2373033,96483.0,96461.0,0.3608]
[1739310491025,0.03,96483.0,96475.0,0.3608]
[1739310491341,0.03,96483.0,96481.0,0.2073056]
[1739310491342,0.04268083,96482.0,96481.0,0.2073056]
[1739310491539,0.00978083,96482.0,96481.0,0.2073056]
[1739310491836,0.03,96483.0,96482.0,0.2073035]
[1739310493839,0.00975172,96485.0,96476.0,0.1284291]
[1739310494028,0.00015552,96488.0,96487.0,0.2072927]
[1739310494340,0.0637,96509.0,96483.0,0.3608]
[1739310494537,0.0637,96509.0,96491.0,0.3608]
[1739310494733,0.04217225,96509.0,96492.0,1.57668]
[1739310494933,0.24941855,96509.0,96500.0,0.2072645]
[1739310495132,0.24941855,96509.0,96492.0,1.57828]
[1739310495133,0.04217225,96509.0,96492.0,1.57828]
[1739310495332,0.2072509,96507.0,96492.0,1.57668]
[1739310495825,0.04217225,96509.0,96492.0,1.57668]
[1739310496030,0.04217225,96509.0,96508.0,0.2072476]
[1739310496234,0.032,96509.0,96508.0,0.2072476]
[1739310496443,0.033,96509.0,96508.0,0.2072476]
[1739310497233,0.001,96509.0,96508.0,0.2082476]
[1739310497431,0.001,96509.0,96508.0,0.001]
[1739310498033,0.5680221,96520.0,96508.0,0.07732]
[1739310498229,0.5680221,96520.0,96513.0,0.2072353]
[1739310498230,0.2072244,96519.0,96513.0,0.2072353]
[1739310498430,0.3705798,96520.0,96513.0,0.2072353]
[1739310498626,0.2170017,96520.0,96510.0,0.12384273]
[1739310498833,0.2072241,96519.0,96514.0,0.2072343]
[1739310499638,0.2072241,96519.0,96513.0,0.001]
[1739310499639,0.3608,96521.0,96513.0,0.001]
[1739310499837,0.3608,96521.0,96518.0,0.2072261]
[1739310501036,0.37084407,96521.0,96514.0,0.002]
[1739310501244,0.2072326,96515.0,96514.0,0.001]
[1739310501936,0.2072326,96515.0,96503.0,0.07604]
[1739310502136,0.3608,96513.0,96503.0,0.07604]
[1739310502349,0.3608,96513.0,96508.0,0.2072475]
[1739310502642,0.3608,96513.0,96500.0,0.12384273]
[1739310503029,0.3608,96513.0,96512.0,0.207239]
[1739310504642,0.5680369,96513.0,96512.0,0.207239]
[1739310505142,0.3608,96513.0,96508.0,0.001]
[1739310505441,0.2072455,96509.0,96508.0,0.001]
[1739310505643,0.2072455,96509.0,96508.0,0.2072476]
[1739310506436,0.2072455,96509.0,96508.0,0.2082476]
[1739310506748,0.2072455,96509.0,96508.0,0.2092476]
[1739310507143,0.2072455,96509.0,96508.0,0.2082476]
[1739310507349,0.00015543,96526.0,96524.0,0.2072118]
[1739310507546,0.00015543,96526.0,96524.0,0.2072126]
[1739310507847,0.00015543,96526.0,96516.0,0.2072302]
[1739310507848,0.20736603,96526.0,96516.0,0.2072302]
[1739310508140,0.2072115,96525.0,96524.0,0.2072111]
[1739310508844,0.2072115,96525.0,96524.0,0.2082111]
[1739310509045,0.2072115,96525.0,96524.0,0.2092111]
[1739310510550,0.2072115,96525.0,96524.0,0.002]
[1739310510738,0.2378115,96525.0,96524.0,0.002]
[1739310511242,0.2072305,96516.0,96515.0,0.00015543]
[1739310512547,0.2072305,96516.0,96515.0,0.20738803]
[1739310512949,0.2072305,96516.0,96515.0,0.20838803]
[1739310513242,0.2072305,96516.0,96515.0,0.00115543]
[1739310513844,0.2072305,96516.0,96515.0,0.20838803]
[1739310514739,0.2072305,96516.0,96515.0,0.00115543]
[1739310515846,0.21695822,96516.0,96515.0,0.00115543]
[1739310518544,0.2072605,96502.0,96501.0,0.18155404]
[1739310518747,0.5680605,96502.0,96501.0,0.18155404]
[1739310519348,0.2072677,96499.0,96495.0,0.2072751]
[1739310519553,0.2072715,96497.0,96495.0,0.2072751]
[1739310520451,0.2072734,96496.0,96495.0,0.2072751]
[1739310521243,0.2072734,96496.0,96495.0,0.2082751]
[1739310521655,0.2072734,96496.0,96495.0,0.2122751]
[1739310521855,0.2072734,96496.0,96495.0,0.2112751]
[1739310522354,0.2102734,96496.0,96495.0,0.2082751]
[1739310524146,0.2102734,96496.0,96495.0,0.001]
[1739310526150,0.003,96496.0,96495.0,0.2082755]
[1739310527154,0.003,96496.0,96495.0,0.001]
[1739310527358,0.2102734,96496.0,96495.0,0.001]
[1739310527551,0.2072853,96491.0,96488.0,0.2072906]
[1739310527953,0.3608,96492.0,96488.0,0.2072906]
[1739310528153,0.2072873,96490.0,96488.0,0.2072906]
[1739310528753,0.3608,96492.0,96488.0,0.2072906]
[1739310528949,0.2072884,96489.0,96488.0,0.2072906]
[1739310529356,0.2072906,96488.0,96487.0,0.00015543]
[1739310529661,0.2072906,96488.0,96487.0,0.20744813]
[1739310529855,0.3628,96492.0,96491.0,0.2072841]
[1739310530060,0.002,96492.0,96491.0,0.2072841]
[1739310530648,0.207278,96494.0,96492.0,0.2072811]
[1739310531049,0.0101109,96498.0,96492.0,0.2072811]
[1739310531050,0.2072798,96493.0,96492.0,0.2072811]
[1739310532553,0.3608,96494.0,96487.0,0.36095543]
[1739310532757,0.2072906,96488.0,96487.0,0.36095543]
[1739310533463,0.2072906,96488.0,96487.0,0.00015543]
[1739310534660,0.2072906,96488.0,96459.0,0.3608]
[1739310534661,0.002,96488.0,96472.0,0.2073244]
[1739310534867,0.2073228,96473.0,96472.0,0.2073244]
[1739310537071,0.12399816,96482.0,96463.0,0.00015543]
[1739310537284,0.2073376,96468.0,96467.0,0.2073346]
[1739310537871,0.1983376,96468.0,96467.0,0.2073346]
[1739310538068,0.2073379,96466.0,96465.0,0.20889425]
[1739310538468,0.2033379,96466.0,96465.0,0.2073395]
[1739310538776,0.1923379,96466.0,96465.0,0.2073395]
[1739310539766,0.2073422,96464.0,96463.0,0.00015543]
[1739310540275,0.1973422,96464.0,96463.0,0.00015543]
[1739310540483,0.1933422,96464.0,96463.0,0.00015543]
[1739310541074,0.1943422,96464.0,96463.0,0.01615543]
[1739310541675,0.1943422,96464.0,96463.0,0.01015543]
[1739310542771,0.001,96464.0,96463.0,0.21749973]
[1739310543169,0.2133422,96464.0,96463.0,0.20849973]
[1739310543379,0.2283422,96464.0,96463.0,0.00215543]
[1739310544277,0.2223422,96464.0,96463.0,0.00115543]
[1739310544872,0.2223422,96464.0,96438.0,0.0015552]
[1739310544873,0.015,96464.0,96438.0,0.0015552]
[1739310545073,0.5681959,96439.0,96438.0,0.0015552]
[1739310545273,0.2073959,96439.0,96438.0,0.0015552]
[1739310545486,0.396,96447.0,96438.0,0.0015552]
[1739310545782,0.2073895,96442.0,96438.0,0.0015552]
[1739310545978,0.40597021,96447.0,96438.0,0.0015552]
[1739310546280,0.2073905,96442.0,96438.0,0.210953]
[1739310546483,0.2073919,96441.0,96438.0,0.210953]
[1739310546679,0.2073919,96441.0,96438.0,0.208953]
[1739310546876,0.2073919,96441.0,96438.0,0.214953]
[1739310547078,0.40597021,96447.0,96438.0,0.0075552]
[1739310547282,0.2073957,96440.0,96438.0,0.0055552]
[1739310547469,0.2073957,96440.0,96438.0,0.0065552]
[1739310547782,0.2073957,96440.0,96438.0,0.0025552]
[1739310549084,0.40597021,96447.0,96438.0,0.0025552]